fUSD/lending_fUSD_20250208
["ID","MTS","AMOUNT","RATE_DAILY","PERIOD"]
[352261989,1739020263563,-1305.21,0.00010528,2]
[352261990,1739020263574,-1780.42,0.00010528,2]
[352261991,1739020263584,-3165.45,0.00010528,2]
[352261992,1739020263593,-1157.2,0.00010528,2]
[352261993,1739020263603,-1569.05,0.00010528,2]
[352261994,1739020263612,-4407.25,0.00010528,2]
[352261995,1739020263622,-1110.65,0.00010528,2]
[352261996,1739020263632,-6571.21,0.00010528,2]
[352261997,1739020263641,-500.0,0.00010528,2]
[352261998,1739020263651,-1766.58,0.00010528,2]
[352261999,1739020263661,-2394.92,0.00010528,2]
[352262000,1739020263671,-720.87,0.00010528,2]
[352262001,1739020263680,-2964.8,0.00010528,2]
[352262002,1739020263690,-1365.76,0.00010528,2]
[352262003,1739020263700,-1775.62,0.00010528,2]
[352262004,1739020263710,-1518.17,0.00010528,2]
[352262005,1739020263720,-791.94,0.00010528,2]
[352262006,1739020263730,-2925.01,0.00010528,2]
[352262007,1739020263740,-1969.88,0.00010528,2]
[352262008,1739020263750,-915.4,0.00010528,2]
[352262009,1739020263760,-2744.07,0.00010528,2]
[352262010,1739020263770,-1251.68,0.00010528,2]
[352262011,1739020263834,-2268.97,0.00010528,2]
[352262012,1739020263844,-500.0,0.00010528,2]
[352262013,1739020263853,-1089.37,0.00010528,2]
[352262014,1739020263864,-656.39,0.00010528,2]
[352262015,1739020263873,-500.0,0.00010528,2]
[352262016,1739020263882,-614.82,0.00010528,2]
[352262017,1739020263895,-402.55959165,0.00010528,2]
[352262018,1739020263906,-500.0,0.00010528,2]
[352262019,1739020263916,-3020.1,0.00010528,2]
[352262020,1739020263926,-1962.59,0.00010528,2]
[352262021,1739020263936,-1406.72,0.00010528,2]
[352262022,1739020263945,-786.43,0.00010528,2]
[352262023,1739020263954,-1122.53,0.00010528,2]
[352262024,1739020263964,-1351.74,0.00010528,2]
[352262025,1739020263973,-500.0,0.00010529,2]
[352262026,1739020263983,-817.53,0.00010529,2]
[352262027,1739020263992,-608.65,0.00010529,2]
[352262028,1739020264002,-500.0,0.00010529,2]
[352262029,1739020264012,-726.57,0.00010529,2]
[352262030,1739020264022,-500.0,0.00010529,2]
[352262031,1739020264032,-505.85655566,0.00010529,2]
[352262032,1739020264041,-500.0,0.00010529,2]
[352262033,1739020264052,-1741.68,0.00010529,2]
[352262034,1739020264062,-997.59,0.00010529,2]
[352262035,1739020264073,-197.8927789,0.00010529,2]
[352262036,1739020264083,-212.2362891,0.00010529,2]
[352262037,1739020264092,-500.0,0.00010529,2]
[352262038,1739020264102,-500.0,0.00010529,2]
[352262039,1739020264112,-500.0,0.00010529,2]
[352262040,1739020264122,-916.59,0.00010529,2]
[352262041,1739020264132,-549.43,0.00010529,2]
[352262042,1739020264142,-500.0,0.00010529,2]
[352262043,1739020264151,-500.0,0.00010529,2]
[352262044,1739020264161,-623.25,0.00010529,2]
[352262045,1739020264170,-500.0,0.00010529,2]
[352262046,1739020264180,-1430.21,0.00010529,2]
[352262047,1739020264190,-500.0,0.00010529,2]
[352262048,1739020264200,-500.0,0.00010529,2]
[352262049,1739020264211,-741.2,0.00010529,2]
[352262050,1739020264221,-500.0,0.00010529,2]
[352262051,1739020264230,-500.0,0.00010529,2]
[352262052,1739020264240,-500.0,0.00010529,2]
[352262053,1739020264251,-500.0,0.00010529,2]
[352262054,1739020264261,-1164.1,0.00010529,2]
[352262055,1739020264271,-562.63,0.00010529,2]
[352262056,1739020264281,-500.0,0.00010529,2]
[352262057,1739020264291,-500.0,0.00010529,2]
[352262058,1739020264300,-500.0,0.00010529,2]
[352262059,1739020264310,-500.0,0.00010529,2]
[352262060,1739020264323,-500.0,0.00010529,2]
[352262061,1739020264334,-500.0,0.00010529,2]
[352262062,1739020264345,-508.31,0.00010529,2]
[352262063,1739020264355,-500.0,0.00010529,2]
[352262064,1739020264365,-500.0,0.00010529,2]
[352262065,1739020264376,-594.56,0.00010529,2]
[352262066,1739020264386,-500.0,0.00010529,2]
[352262067,1739020264396,-562.87,0.00010529,2]
[352262068,1739020264406,-522.4,0.00010529,2]
[352262069,1739020264416,-675.82,0.00010529,2]
[352262070,1739020264426,-651.33,0.00010529,2]
[352262071,1739020264436,-195.15604541,0.00010529,2]
[352262072,1739020264445,-1381.39,0.00010529,2]
[352262073,1739020264455,-500.0,0.00010529,2]
[352262074,1739020264465,-500.0,0.00010529,2]
[352262075,1739020264474,-983.11,0.00010529,2]
[352262076,1739020264484,-550.73,0.00010529,2]
[352262077,1739020264494,-500.0,0.00010529,2]
[352262078,1739020264504,-500.0,0.00010529,2]
[352262079,1739020264513,-517.98,0.00010529,2]
[352262080,1739020264523,-500.0,0.00010529,2]
[352262081,1739020264533,-500.0,0.00010529,2]
[352262082,1739020264543,-500.0,0.00010529,2]
[352262083,1739020264554,-788.09,0.00010529,2]
[352262084,1739020264566,-1087.6,0.00010529,2]
[352262085,1739020264576,-1302.96,0.00010529,2]
[352262086,1739020264587,-1217.75,0.00010529,2]
[352262087,1739020264597,-500.0,0.00010529,2]
[352262088,1739020264606,-500.0,0.00010529,2]
[352262089,1739020264616,-500.0,0.00010529,2]
[352262090,1739020264625,-520.28,0.00010529,2]
[352262091,1739020264634,-1271.03,0.00010529,2]
[352262092,1739020264643,-500.0,0.00010529,2]
[352262093,1739020264653,-500.0,0.00010529,2]
[352262094,1739020264662,-886.29,0.00010529,2]
[352262095,1739020264672,-500.0,0.00010529,2]
[352262096,1739020264682,-583.63,0.00010529,2]
[352262097,1739020264692,-1332.49,0.00010529,2]
[352262098,1739020264702,-500.0,0.00010529,2]
[352262099,1739020264711,-500.0,0.00010529,2]
[352262100,1739020264721,-727.59,0.00010529,2]
[352262101,1739020264731,-557.29,0.00010529,2]
[352262102,1739020264741,-500.0,0.00010529,2]
[352262103,1739020264750,-977.44,0.00010529,2]
[352262104,1739020264760,-500.0,0.00010529,2]
[352262105,1739020264770,-500.0,0.00010529,2]
[352262106,1739020264779,-1335.82,0.00010529,2]
[352262107,1739020264788,-500.0,0.00010529,2]
[352262108,1739020264798,-500.0,0.00010529,2]
[352262109,1739020264809,-500.0,0.00010529,2]
[352262110,1739020264824,-500.0,0.00010529,2]
[352262111,1739020264833,-526.78,0.00010529,2]
[352262112,1739020264843,-606.82535636,0.00010529,2]
[352262113,1739020264852,-1098.45,0.00010529,2]
[352262114,1739020264862,-549.34,0.00010529,2]
[352262115,1739020264872,-544.67,0.00010529,2]
[352262116,1739020264881,-571.03,0.00010529,2]
[352262117,1739020264891,-497.2402758,0.00010529,2]
[352262118,1739020264902,-500.0,0.00010529,2]
[352262119,1739020264912,-901.64,0.00010529,2]
[352262120,1739020264922,-500.0,0.00010529,2]
[352262121,1739020264931,-500.0,0.00010529,2]
[352262122,1739020264940,-672.29,0.00010529,2]
[352262123,1739020264950,-500.0,0.00010529,2]
[352262124,1739020264959,-500.0,0.00010529,2]
[352262125,1739020264969,-500.0,0.00010529,2]
[352262126,1739020264978,-560.41,0.00010529,2]
[352262127,1739020264987,-500.0,0.00010529,2]
[352262128,1739020264997,-581.63,0.00010529,2]
[352262129,1739020265006,-500.0,0.00010529,2]
[352262130,1739020265015,-551.18,0.00010529,2]
[352262131,1739020265025,-500.0,0.00010529,2]
[352262132,1739020265035,-511.63,0.00010529,2]
[352262133,1739020265045,-1312.13,0.00010529,2]
[352262134,1739020265055,-581.18,0.00010529,2]
[352262135,1739020265064,-500.0,0.00010529,2]
[352262136,1739020265075,-500.0,0.00010529,2]
[352262137,1739020265084,-500.0,0.00010529,2]
[352262138,1739020265094,-500.0,0.00010529,2]
[352262139,1739020265103,-430.30168153,0.00010529,2]
[352262140,1739020265113,-1103.92,0.00010529,2]
[352262141,1739020265122,-500.0,0.00010529,2]
[352262142,1739020265132,-500.0,0.00010529,2]
[352262143,1739020265141,-500.0,0.00010529,2]
[352262144,1739020265150,-500.0,0.00010529,2]
[352262145,1739020265159,-500.0,0.00010529,2]
[352262146,1739020265168,-500.0,0.00010529,2]
[352262147,1739020265177,-1044.81,0.00010529,2]
[352262148,1739020265187,-500.0,0.00010529,2]
[352262149,1739020265196,-500.0,0.00010529,2]
[352262150,1739020265206,-500.0,0.00010529,2]
[352262151,1739020265215,-500.0,0.00010529,2]
[352262152,1739020265225,-500.0,0.00010529,2]
[352262153,1739020265235,-605.64,0.00010529,2]
[352262154,1739020265244,-1097.71,0.00010529,2]
[352262155,1739020265253,-1112.79,0.00010529,2]
[352262156,1739020265263,-500.0,0.00010529,2]
[352262157,1739020265272,-500.0,0.00010529,2]
[352262158,1739020265282,-500.0,0.00010529,2]
[352262159,1739020265291,-500.0,0.00010529,2]
[352262160,1739020265300,-524.13,0.00010529,2]
[352262161,1739020265310,-500.0,0.00010529,2]
[352262162,1739020265320,-500.0,0.00010529,2]
[352262163,1739020265330,-500.0,0.00010529,2]
[352262164,1739020265339,-500.0,0.00010529,2]
[352262165,1739020265349,-564.53,0.00010529,2]
[352262166,1739020265358,-500.0,0.00010529,2]
[352262167,1739020265368,-1123.58,0.00010529,2]
[352262168,1739020265377,-500.0,0.00010529,2]
[352262169,1739020265387,-500.0,0.00010529,2]
[352262170,1739020265397,-500.0,0.00010529,2]
[352262171,1739020265406,-1041.77,0.00010529,2]
[352262172,1739020265415,-500.0,0.00010529,2]
[352262173,1739020265424,-500.0,0.00010529,2]
[352262174,1739020265434,-750.8,0.00010529,2]
[352262175,1739020265443,-1069.05,0.00010529,2]
[352262176,1739020265453,-1055.59,0.00010529,2]
[352262177,1739020265462,-500.0,0.00010529,2]
[352262178,1739020265472,-562.2,0.00010529,2]
[352262179,1739020265481,-885.55,0.00010529,2]
[352262180,1739020265491,-500.0,0.00010529,2]
[352262181,1739020265501,-500.0,0.00010529,2]
[352262182,1739020265510,-1227.89,0.00010529,2]
[352262183,1739020265519,-500.0,0.00010529,2]
[352262184,1739020265529,-500.0,0.00010529,2]
[352262185,1739020265538,-504.42129025,0.00010529,2]
[352262186,1739020265549,-500.0,0.00010529,2]
[352262187,1739020265558,-500.0,0.00010529,2]
[352262188,1739020265568,-500.0,0.00010529,2]
[352262189,1739020265578,-1428.69,0.00010529,2]
[352262190,1739020265588,-500.0,0.00010529,2]
[352262191,1739020265598,-1318.66,0.00010529,2]
[352262192,1739020265606,-500.0,0.00010529,2]
[352262193,1739020265616,-909.39,0.00010529,2]
[352262194,1739020265625,-500.0,0.00010529,2]
[352262195,1739020265635,-500.0,0.00010529,2]
[352262196,1739020265644,-500.0,0.00010529,2]
[352262197,1739020265654,-500.0,0.00010529,2]
[352262198,1739020265663,-741.27,0.00010529,2]
[352262199,1739020265673,-500.0,0.00010529,2]
[352262200,1739020265682,-609.95,0.00010529,2]
[352262201,1739020265692,-1449.6,0.00010529,2]
[352262202,1739020265701,-596.33,0.00010529,2]
[352262203,1739020265711,-500.0,0.00010529,2]
[352262204,1739020265720,-500.0,0.00010529,2]
[352262205,1739020265730,-500.0,0.00010529,2]
[352262206,1739020265740,-833.9,0.00010529,2]
[352262207,1739020265749,-768.73,0.00010529,2]
[352262208,1739020265758,-644.8,0.00010529,2]
[352262209,1739020265768,-500.0,0.00010529,2]
[352262210,1739020265777,-1205.53,0.00010529,2]
[352262211,1739020265787,-500.0,0.00010529,2]
[352262212,1739020265796,-660.9,0.00010529,2]
[352262213,1739020265806,-529.36,0.00010529,2]
[352262214,1739020265819,-1285.09,0.00010529,2]
[352262215,1739020265828,-3583.76,0.00010529,2]
[352262216,1739020265838,-600.71225623,0.00010529,2]
[352262217,1739020265848,-500.0,0.00010529,2]
[352262218,1739020265858,-500.0,0.00010529,2]
[352262219,1739020265867,-1379.8,0.00010529,2]
[352262220,1739020265877,-500.0,0.00010529,2]
[352262221,1739020265887,-500.0,0.00010529,2]
[352262222,1739020265897,-995.06,0.00010529,2]
[352262223,1739020265906,-761.85,0.00010529,2]
[352262224,1739020265915,-500.0,0.00010529,2]
[352262225,1739020265925,-1861.18,0.00010529,2]
[352262226,1739020265934,-500.0,0.00010529,2]
[352262227,1739020265943,-767.16,0.00010529,2]
[352262228,1739020265952,-1956.03,0.00010529,2]
[352262229,1739020265962,-500.0,0.00010529,2]
[352262230,1739020265971,-618.51,0.00010529,2]
[352262231,1739020265980,-2847.12,0.00010529,2]
[352262232,1739020265990,-500.0,0.00010529,2]
[352262233,1739020266000,-500.0,0.00010529,2]
[352262234,1739020266009,-1219.15,0.00010529,2]
[352262235,1739020266022,-500.0,0.00010529,2]
[352262236,1739020266033,-500.0,0.00010529,2]
[352262237,1739020266042,-500.0,0.00010529,2]
[352262238,1739020266052,-500.0,0.00010529,2]
[352262239,1739020266062,-1309.52,0.00010529,2]
[352262240,1739020266076,-2233.48,0.00010529,2]
[352262241,1739020266085,-500.0,0.00010529,2]
[352262242,1739020266095,-500.0,0.00010529,2]
[352262243,1739020266105,-500.0,0.00010529,2]
[352262244,1739020266115,-629.39,0.00010529,2]
[352262245,1739020266124,-500.0,0.00010529,2]
[352262246,1739020266135,-500.0,0.00010529,2]
[352262247,1739020266144,-2007.43,0.00010529,2]
[352262248,1739020266154,-1326.46,0.00010529,2]
[352262249,1739020266163,-500.0,0.00010529,2]
[352262250,1739020266172,-500.0,0.00010529,2]
[352262251,1739020266182,-500.0,0.00010529,2]
[352262252,1739020266191,-538.15,0.00010529,2]
[352262253,1739020266201,-672.52,0.00010529,2]
[352262254,1739020266210,-500.0,0.00010529,2]
[352262255,1739020266219,-1070.67,0.00010529,2]
[352262256,1739020266229,-500.0,0.00010529,2]
[352262257,1739020266239,-500.0,0.00010529,2]
[352262258,1739020266249,-500.0,0.00010529,2]
[352262259,1739020266259,-500.0,0.00010529,2]
[352262260,1739020266268,-500.0,0.00010529,2]
[352262261,1739020266277,-500.0,0.00010529,2]
[352262262,1739020266287,-500.0,0.00010529,2]
[352262263,1739020266296,-2270.09,0.00010529,2]
[352262264,1739020266306,-537.41,0.00010529,2]
[352262265,1739020266316,-500.0,0.00010529,2]
[352262266,1739020266328,-500.0,0.00010529,2]
[352262267,1739020266338,-500.0,0.00010529,2]
[352262268,1739020266347,-654.41,0.00010529,2]
[352262269,1739020266357,-500.0,0.00010529,2]
[352262270,1739020266367,-500.0,0.00010529,2]
[352262271,1739020266377,-500.0,0.00010529,2]
[352262272,1739020266386,-500.0,0.00010529,2]
[352262273,1739020266395,-1624.31,0.00010529,2]
[352262274,1739020266404,-500.0,0.00010529,2]
[352262275,1739020266413,-500.0,0.00010529,2]
[352262276,1739020266422,-500.0,0.00010529,2]
[352262277,1739020266431,-500.0,0.00010529,2]
[352262278,1739020266439,-500.0,0.00010529,2]
[352262279,1739020266449,-500.0,0.00010529,2]
[352262280,1739020266458,-500.0,0.00010529,2]
[352262281,1739020266467,-2768.81,0.00010529,2]
[352262282,1739020266477,-840.8,0.00010529,2]
[352262283,1739020266487,-517.09,0.00010529,2]
[352262284,1739020266496,-500.0,0.00010529,2]
[352262285,1739020266506,-3723.14,0.00010529,2]
[352262286,1739020266516,-500.0,0.00010529,2]
[352262287,1739020266525,-605.04,0.00010529,2]
[352262288,1739020266535,-1535.65,0.00010529,2]
[352262289,1739020266544,-982.02,0.00010529,2]
[352262290,1739020266554,-500.0,0.00010529,2]
[352262291,1739020266564,-1059.77,0.00010529,2]
[352262292,1739020266575,-500.0,0.00010529,2]
[352262293,1739020266585,-1288.85,0.00010529,2]
[352262294,1739020266595,-592.05,0.00010529,2]
[352262295,1739020266604,-858.39,0.00010529,2]
[352262296,1739020266614,-500.0,0.00010529,2]
[352262297,1739020266624,-500.0,0.00010529,2]
[352262298,1739020266633,-2635.72,0.00010529,2]
[352262299,1739020266643,-500.0,0.00010529,2]
[352262300,1739020266653,-500.0,0.00010529,2]
[352262301,1739020266663,-1294.22,0.00010529,2]
[352262302,1739020266672,-638.8,0.00010529,2]
[352262303,1739020266682,-503.12,0.00010529,2]
[352262304,1739020266691,-500.0,0.00010529,2]
[352262305,1739020266701,-500.0,0.00010529,2]
[352262306,1739020266711,-1426.1,0.00010529,2]
[352262307,1739020266720,-500.0,0.0001053,2]
[352262308,1739020266729,-500.0,0.0001053,2]
[352262309,1739020266738,-239.71159314,0.0001053,2]
[352262310,1739020266748,-500.0,0.0001053,2]
[352262311,1739020266757,-500.0,0.0001053,2]
[352262312,1739020266767,-500.0,0.0001053,2]
[352262313,1739020266777,-500.0,0.0001053,2]
[352262314,1739020266786,-500.0,0.0001053,2]
[352262315,1739020266796,-503.35490683,0.0001053,2]
[352262316,1739020266805,-500.0,0.0001053,2]
[352262317,1739020266819,-500.0,0.0001053,2]
[352262318,1739020266832,-500.0,0.0001053,2]
[352262319,1739020266844,-500.0,0.0001053,2]
[352262320,1739020266854,-500.0,0.0001053,2]
[352262321,1739020266866,-500.0,0.0001053,2]
[352262322,1739020266876,-500.0,0.0001053,2]
[352262323,1739020266886,-500.0,0.0001053,2]
[352262324,1739020266897,-500.0,0.0001053,2]
[352262325,1739020266907,-500.0,0.0001053,2]
[352262326,1739020266917,-500.0,0.0001053,2]
[352262327,1739020266928,-500.0,0.0001053,2]
[352262328,1739020266938,-500.0,0.0001053,2]
[352262329,1739020266948,-500.0,0.0001053,2]
[352262330,1739020266958,-500.0,0.0001053,2]
[352262331,1739020266967,-500.0,0.0001053,2]
[352262332,1739020266977,-500.0,0.0001053,2]
[352262333,1739020266987,-500.0,0.0001053,2]
[352262334,1739020266996,-500.0,0.0001053,2]
[352262335,1739020267006,-500.0,0.0001053,2]
[352262336,1739020267016,-500.0,0.0001053,2]
[352262337,1739020267027,-564.28,0.0001053,2]
[352262338,1739020267037,-500.0,0.0001053,2]
[352262339,1739020267046,-1059.26,0.0001053,2]
[352262340,1739020267056,-500.0,0.0001053,2]
[352262341,1739020267066,-500.0,0.0001053,2]
[352262342,1739020267078,-500.0,0.0001053,2]
[352262343,1739020267088,-500.0,0.0001053,2]
[352262344,1739020267098,-500.0,0.0001053,2]
[352262345,1739020267108,-702.17,0.0001053,2]
[352262346,1739020267117,-500.0,0.0001053,2]
[352262347,1739020267126,-510.59431188,0.0001053,2]
[352262348,1739020267136,-500.0,0.0001053,2]
[352262349,1739020267145,-500.0,0.0001053,2]
[352262350,1739020267156,-500.0,0.0001053,2]
[352262351,1739020267165,-500.0,0.0001053,2]
[352262352,1739020267175,-500.0,0.0001053,2]
[352262353,1739020267185,-532.9,0.0001053,2]
[352262354,1739020267195,-500.0,0.0001053,2]
[352262355,1739020267205,-500.0,0.0001053,2]
[352262356,1739020267214,-500.0,0.0001053,2]
[352262357,1739020267223,-500.0,0.0001053,2]
[352262358,1739020267233,-500.0,0.0001053,2]
[352262359,1739020267243,-500.0,0.0001053,2]
[352262360,1739020267253,-500.0,0.0001053,2]
[352262361,1739020267262,-500.0,0.0001053,2]
[352262362,1739020267273,-500.0,0.0001053,2]
[352262363,1739020267283,-500.0,0.0001053,2]
[352262364,1739020267293,-500.0,0.0001053,2]
[352262365,1739020267303,-500.0,0.0001053,2]
[352262366,1739020267313,-500.0,0.0001053,2]
[352262367,1739020267324,-500.0,0.0001053,2]
[352262368,1739020267334,-500.0,0.0001053,2]
[352262369,1739020267344,-584.98511506,0.0001053,2]
[352262370,1739020267354,-500.0,0.0001053,2]
[352262371,1739020267363,-500.0,0.0001053,2]
[352262372,1739020267373,-1154.57,0.0001053,2]
[352262373,1739020267383,-532.97,0.0001053,2]
[352262374,1739020267393,-1608.84,0.0001053,2]
[352262375,1739020267402,-7652.56,0.0001053,2]
[352262376,1739020267412,-1869.74,0.0001053,2]
[352262377,1739020267422,-1706.76,0.0001053,2]
[352262378,1739020267433,-500.0,0.0001053,2]
[352262379,1739020267443,-500.0,0.0001053,2]
[352262380,1739020267452,-1406.57,0.0001053,2]
[352262381,1739020267462,-897.45,0.0001053,2]
[352262382,1739020267472,-500.0,0.0001053,2]
[352262383,1739020267483,-500.0,0.0001053,2]
[352262384,1739020267493,-1841.4,0.0001053,2]
[352262385,1739020267502,-500.0,0.0001053,2]
[352262386,1739020267512,-500.0,0.0001053,2]
[352262387,1739020267522,-2769.97,0.0001053,2]
[352262388,1739020267531,-500.0,0.0001053,2]
[352262389,1739020267541,-8679.82,0.0001053,2]
[352262390,1739020267550,-500.0,0.0001053,2]
[352262391,1739020267560,-500.0,0.0001053,2]
[352262392,1739020267570,-1313.85,0.0001053,2]
[352262393,1739020267580,-500.0,0.0001053,2]
[352262394,1739020267590,-500.0,0.0001053,2]
[352262395,1739020267600,-500.0,0.0001053,2]
[352262396,1739020267610,-559.79,0.0001053,2]
[352262397,1739020267619,-1447.03,0.0001053,2]
[352262398,1739020267628,-500.0,0.0001053,2]
[352262399,1739020267638,-500.0,0.0001053,2]
[352262400,1739020267647,-1223.94,0.0001053,2]
[352262401,1739020267656,-2822.14,0.0001053,2]
[352262402,1739020267666,-500.0,0.0001053,2]
[352262403,1739020267676,-500.0,0.0001053,2]
[352262404,1739020267686,-500.0,0.0001053,2]
[352262405,1739020267696,-571.96,0.0001053,2]
[352262406,1739020267705,-926.34,0.0001053,2]
[352262407,1739020267715,-500.0,0.0001053,2]
[352262408,1739020267724,-2032.95,0.0001053,2]
[352262409,1739020267735,-2270.5,0.0001053,2]
[352262410,1739020267745,-1161.36,0.0001053,2]
[352262411,1739020267755,-1381.95,0.0001053,2]
[352262412,1739020267765,-500.0,0.0001053,2]
[352262413,1739020267775,-2231.84,0.0001053,2]
[352262414,1739020267785,-2534.04,0.0001053,2]
[352262415,1739020267794,-538.34,0.00010531,2]
[352262416,1739020267804,-1221.05,0.00010531,2]
[352262417,1739020267815,-506.59,0.00010531,2]
[352262418,1739020267827,-612.21,0.00010531,2]
[352262419,1739020267837,-1190.17,0.00010531,2]
[352262420,1739020267847,-1180.13,0.00010531,2]
[352262421,1739020267857,-1496.78,0.00010531,2]
[352262422,1739020267867,-1332.66,0.00010531,2]
[352262423,1739020267877,-630.09,0.00010531,2]
[352262424,1739020267887,-539.19,0.00010531,2]
[352262425,1739020267898,-575.47,0.00010531,2]
[352262426,1739020267908,-500.0,0.00010531,2]
[352262427,1739020267918,-1286.54,0.00010531,2]
[352262428,1739020267928,-561.04,0.00010531,2]
[352262429,1739020267938,-1275.18,0.00010531,2]
[352262430,1739020267948,-1233.34,0.00010531,2]
[352262431,1739020267958,-501.8,0.00010531,2]
[352262432,1739020267968,-581.09,0.00010531,2]
[352262433,1739020267978,-1215.43,0.00010531,2]
[352262434,1739020267990,-500.0,0.00010531,2]
[352262435,1739020268001,-365.71015614,0.00010531,2]
[352262436,1739020268011,-508.2,0.00010531,2]
[352262437,1739020268022,-530.46,0.00010531,2]
[352262438,1739020268032,-653.67,0.00010531,2]
[352262439,1739020268043,-730.4,0.00010531,2]
[352262440,1739020268053,-257.53577669,0.00010567,2]
[352262441,1739020268064,-584.24,0.00010595,2]
[352262442,1739020268074,-164.07,0.00010647,2]
[352262443,1739020268085,-729.12,0.00010665,2]
[352262444,1739020268095,-631.7,0.00010665,2]
[352262445,1739020268105,-2815.16,0.00010665,2]
[352262446,1739020268115,-1087.56,0.00010665,2]
[352262447,1739020268124,-945.46,0.00010665,2]
[352262448,1739020268135,-2118.221808,0.00010665,2]
[352262449,1739020268145,-1230.12,0.00010665,2]
[352262450,1739020268156,-722.84,0.00010665,2]
[352262451,1739020268166,-3025.3,0.00010665,2]
[352262452,1739020268176,-2475.332229,0.00010665,2]
[352262453,1739020268186,-751.39,0.00010665,2]
[352262454,1739020268196,-1508.12,0.00010665,2]
[352262455,1739020268206,-154.492046,0.00010665,2]
[352262456,1739020268217,-1917.11,0.00010665,2]
[352262457,1739020268227,-500.0,0.00010665,2]
[352262458,1739020268237,-500.0,0.00010665,2]
[352262459,1739020268248,-501.54,0.00010665,2]
[352262460,1739020268258,-936.14,0.00010665,2]
[352262461,1739020268268,-1194.46,0.00010665,2]
[352262462,1739020268278,-1511.63,0.00010665,2]
[352262463,1739020268289,-1899.22,0.00010665,2]
[352262464,1739020268299,-1669.03,0.00010665,2]
[352262465,1739020268310,-1125.52,0.00010665,2]
[352262466,1739020268319,-1085.17,0.00010665,2]
[352262467,1739020268330,-2043.74,0.00010665,2]
[352262468,1739020268341,-2568.21,0.00010665,2]
[352262469,1739020268351,-874.81,0.00010665,2]
[352262470,1739020268361,-2104.43,0.00010665,2]
[352262471,1739020268371,-2510.95,0.00010665,2]
[352262472,1739020268381,-1305.21,0.00010665,2]
[352262473,1739020268400,-1780.42,0.00010665,2]
[352262474,1739020268422,-3165.45,0.00010665,2]
[352262475,1739020268433,-1157.2,0.00010665,2]
[352262476,1739020268443,-1569.05,0.00010665,2]
[352262477,1739020268453,-4407.25,0.00010665,2]
[352262478,1739020268463,-1110.65,0.00010665,2]
[352262479,1739020268473,-6571.21,0.00010665,2]
[352262480,1739020268483,-500.0,0.00010665,2]
[352262481,1739020268492,-1766.58,0.00010665,2]
[352262482,1739020268502,-2394.92,0.00010665,2]
[352262483,1739020268512,-720.87,0.00010665,2]
[352262484,1739020268522,-2964.8,0.00010665,2]
[352262485,1739020268531,-1365.76,0.00010665,2]
[352262486,1739020268539,-1775.62,0.00010665,2]
[352262487,1739020268548,-1518.17,0.00010665,2]
[352262488,1739020268558,-791.94,0.00010665,2]